fUSD/lending_fUSD_20250616
["ID","MTS","AMOUNT","RATE_DAILY","PERIOD"]
[366134685,1750080647418,-717.19,0.00016438,2]
[366134686,1750080647427,-1272.91,0.00016438,2]
[366134687,1750080647437,-2586.06,0.00016438,2]
[366134688,1750080647446,-1495.54,0.00016438,2]
[366134689,1750080647456,-490.0,0.00016438,2]
[366134690,1750080647465,-1502.41,0.00016438,2]
[366134691,1750080647475,-4954.32,0.00016438,2]
[366134692,1750080647656,-791.52,0.00016438,2]
[366134693,1750080647667,-2558.62,0.00016438,2]
[366134694,1750080647676,-490.0,0.00016438,2]
[366134695,1750080647686,-1153.36,0.00016438,2]
[366134696,1750080647696,-971.42,0.00016438,2]
[366134697,1750080647707,-2567.36,0.00016438,2]
[366134698,1750080647716,-490.0,0.00016438,2]
[366134699,1750080647726,-490.0,0.00016438,2]
[366134700,1750080647736,-490.0,0.00016438,2]
[366134701,1750080647746,-2061.23,0.00016438,2]
[366134702,1750080647755,-878.55,0.00016438,2]
[366134703,1750080647765,-490.0,0.00016438,2]
[366134704,1750080647775,-2671.78,0.00016438,2]
[366134705,1750080647786,-727.61,0.00016438,2]
[366134706,1750080647795,-806.92,0.00016438,2]
[366134707,1750080647805,-490.0,0.00016438,2]
[366134708,1750080647815,-1246.26,0.00016438,2]
[366134709,1750080647825,-490.0,0.00016438,2]
[366134710,1750080647835,-490.0,0.00016438,2]
[366134711,1750080647845,-490.0,0.00016438,2]
[366134712,1750080647855,-372.44992422,0.00016438,2]
[366134713,1750080647864,-1237.82,0.00016438,2]
[366134714,1750080647874,-2332.14,0.00016438,2]
[366134715,1750080647883,-490.0,0.00016438,2]
[366134716,1750080647895,-490.0,0.00016438,2]
[366134717,1750080647905,-876.06,0.00016438,2]
[366134718,1750080647915,-490.0,0.00016438,2]
[366134719,1750080647925,-793.7,0.00016438,2]
[366134720,1750080647934,-490.0,0.00016438,2]
[366134721,1750080647944,-490.0,0.00016438,2]
[366134722,1750080647954,-958.55,0.00016438,2]
[366134723,1750080647963,-697.83,0.00016438,2]
[366134724,1750080647973,-490.0,0.00016438,2]
[366134725,1750080647983,-490.0,0.00016438,2]
[366134726,1750080647993,-8120.78,0.00016438,2]
[366134727,1750080648003,-490.0,0.00016438,2]
[366134728,1750080648013,-490.0,0.00016438,2]
[366134729,1750080648024,-490.0,0.00016438,2]
[366134730,1750080648036,-760.66,0.00016438,2]
[366134731,1750080648046,-1064.47,0.00016438,2]
[366134732,1750080648057,-490.0,0.00016438,2]
[366134733,1750080648067,-861.69,0.00016438,2]
[366134734,1750080648077,-490.0,0.00016438,2]
[366134735,1750080648087,-556.7,0.00016438,2]
[366134736,1750080648097,-1946.7,0.00016438,2]
[366134737,1750080648107,-599.88,0.00016438,2]
[366134738,1750080648117,-506.47,0.00016438,2]
[366134739,1750080648127,-490.0,0.00016438,2]
[366134740,1750080648138,-2109.1,0.00016438,2]
[366134741,1750080648150,-2109.1,0.00016438,2]
[366134742,1750080648159,-2109.1,0.00016438,2]
[366134743,1750080648170,-2109.1,0.00016438,2]
[366134744,1750080648180,-1132.62,0.00016438,2]
[366134745,1750080648190,-8392.44,0.00016438,2]
[366134746,1750080648199,-490.0,0.00016438,2]
[366134747,1750080648208,-1799.95,0.00016438,2]
[366134748,1750080648218,-857.43,0.00016438,2]
[366134749,1750080648228,-490.0,0.00016438,2]
[366134750,1750080648237,-490.77245717,0.00016438,2]
[366134751,1750080648247,-490.0,0.00016438,2]
[366134752,1750080648256,-2704.86,0.00016438,2]
[366134753,1750080648266,-732.66,0.00016438,2]
[366134754,1750080648275,-1136.33,0.00016438,2]
[366134755,1750080648285,-490.0,0.00016438,2]
[366134756,1750080648294,-3170.5,0.00016438,2]
[366134757,1750080648304,-15651.79,0.00016438,2]
[366134758,1750080648314,-1056.79,0.00016438,2]
[366134759,1750080648323,-490.0,0.00016438,2]
[366134760,1750080648333,-490.0,0.00016438,2]
[366134761,1750080648343,-2391.99,0.00016438,2]
[366134762,1750080648352,-869.27,0.00016438,2]
[366134763,1750080648362,-490.0,0.00016438,2]
[366134764,1750080648372,-635.20419126,0.00016438,2]
[366134765,1750080648382,-4638.4,0.00016438,2]
[366134766,1750080648393,-676.33,0.00016438,2]
[366134767,1750080648402,-759.56,0.00016438,2]
[366134768,1750080648412,-490.0,0.00016438,2]
[366134769,1750080648421,-490.0,0.00016438,2]
[366134770,1750080648431,-831.63,0.00016438,2]
[366134771,1750080648440,-490.0,0.00016438,2]
[366134772,1750080648450,-564.35,0.00016438,2]
[366134773,1750080648460,-490.0,0.00016438,2]
[366134774,1750080648470,-497.64,0.00016438,2]
[366134775,1750080648480,-490.0,0.00016438,2]
[366134776,1750080648490,-962.12,0.00016438,2]
[366134777,1750080648500,-633.32358558,0.00016438,2]
[366134778,1750080648510,-548.57,0.00016438,2]
[366134779,1750080648520,-500.0,0.00016438,2]
[366134780,1750080648531,-581.64502115,0.00016438,2]
[366134781,1750080648542,-1304.9,0.00016438,2]
[366134782,1750080648552,-490.0,0.00016438,2]
[366134783,1750080648563,-1060.75,0.00016438,2]
[366134784,1750080648573,-622.9062313,0.00016438,2]
[366134785,1750080648583,-622.9062313,0.00016438,2]
[366134786,1750080648594,-622.9062313,0.00016438,2]
[366134787,1750080648604,-622.9062313,0.00016438,2]
[366134788,1750080648615,-622.9062313,0.00016438,2]
[366134789,1750080648626,-622.9062313,0.00016438,2]
[366134790,1750080648637,-622.9062313,0.00016438,2]
[366134791,1750080648650,-622.9062313,0.00016438,2]
[366134792,1750080648661,-622.9062313,0.00016438,2]
[366134793,1750080648671,-622.9062313,0.00016438,2]
[366134794,1750080648681,-490.0,0.00016438,2]
[366134795,1750080648692,-622.9062313,0.00016438,2]
[366134796,1750080648702,-622.9062313,0.00016438,2]
[366134797,1750080648712,-490.0,0.00016438,2]
[366134798,1750080648722,-622.9062313,0.00016438,2]
[366134799,1750080648732,-622.9062313,0.00016438,2]
[366134800,1750080648743,-622.9062313,0.00016438,2]
[366134801,1750080648752,-622.9062313,0.00016438,2]
[366134802,1750080648762,-622.9062313,0.00016438,2]
[366134803,1750080648772,-622.9062313,0.00016438,2]
[366134804,1750080648783,-622.9062313,0.00016438,2]
[366134805,1750080648794,-622.9062313,0.00016438,2]
[366134806,1750080648804,-622.9062313,0.00016438,2]
[366134807,1750080648814,-894.37,0.00016438,2]
[366134808,1750080648824,-622.9062313,0.00016438,2]
[366134809,1750080648834,-622.9062313,0.00016438,2]
[366134810,1750080648844,-622.9062313,0.00016438,2]
[366134811,1750080648854,-3517.78,0.00016438,2]
[366134812,1750080648864,-622.9062313,0.00016438,2]
[366134813,1750080648874,-622.9062313,0.00016438,2]
[366134814,1750080648884,-622.9062313,0.00016438,2]
[366134815,1750080648897,-622.9062313,0.00016438,2]
[366134816,1750080648908,-622.9062313,0.00016438,2]
[366134817,1750080648919,-622.9062313,0.00016438,2]
[366134818,1750080648929,-622.9062313,0.00016438,2]
[366134819,1750080648939,-622.9062313,0.00016438,2]
[366134820,1750080648950,-507.92,0.00016438,2]
[366134821,1750080648961,-622.9062313,0.00016438,2]
[366134822,1750080648971,-622.9062313,0.00016438,2]
[366134823,1750080648982,-622.9062313,0.00016438,2]
[366134824,1750080648993,-622.9062313,0.00016438,2]
[366134825,1750080649003,-622.9062313,0.00016438,2]
[366134826,1750080649013,-622.9062313,0.00016438,2]
[366134827,1750080649024,-622.9062313,0.00016438,2]
[366134828,1750080649034,-622.9062313,0.00016438,2]
[366134829,1750080649047,-622.9062313,0.00016438,2]
[366134830,1750080649057,-622.9062313,0.00016438,2]
[366134831,1750080649067,-622.9062313,0.00016438,2]
[366134832,1750080649077,-622.9062313,0.00016438,2]
[366134833,1750080649087,-622.9062313,0.00016438,2]
[366134834,1750080649097,-622.9062313,0.00016438,2]
[366134835,1750080649107,-622.9062313,0.00016438,2]
[366134836,1750080649118,-622.9062313,0.00016438,2]
[366134837,1750080649128,-622.9062313,0.00016438,2]
[366134838,1750080649138,-622.9062313,0.00016438,2]
[366134839,1750080649150,-622.9062313,0.00016438,2]
[366134840,1750080649160,-622.9062313,0.00016438,2]
[366134841,1750080649171,-622.9062313,0.00016438,2]
[366134842,1750080649181,-622.9062313,0.00016438,2]
[366134843,1750080649191,-622.9062313,0.00016438,2]
[366134844,1750080649201,-622.9062313,0.00016438,2]
[366134845,1750080649211,-1102.73,0.00016438,2]
[366134846,1750080649221,-864.23,0.00016438,2]
[366134847,1750080649231,-622.9062313,0.00016438,2]
[366134848,1750080649241,-622.9062313,0.00016438,2]
[366134849,1750080649251,-622.9062313,0.00016438,2]
[366134850,1750080649261,-622.9062313,0.00016438,2]
[366134851,1750080649271,-622.9062313,0.00016438,2]
[366134852,1750080649281,-622.9062313,0.00016438,2]
[366134853,1750080649291,-500.0,0.00016438,2]
[366134854,1750080649302,-304.32,0.00016438,2]
[366134855,1750080649311,-3642.1652368,0.0001644,2]
[366134856,1750080649322,-4953.03817407,0.00016455,2]
[366134857,1750080649333,-26407.37,0.0001647,2]
[366134858,1750080649343,-500.0,0.00016473,2]
[366134859,1750080649353,-522.81888161,0.00016473,2]
[366134860,1750080649363,-470.58509326,0.00016473,2]
[366134861,1750080649373,-500.0,0.00016473,2]
[366134862,1750080649383,-162.10942601,0.00016473,2]
[366134863,1750080649394,-502.32082111,0.00016473,2]
[366134864,1750080649404,-503.58100641,0.00016473,2]
[366134865,1750080649414,-500.91731703,0.00016473,2]
[366134866,1750080649424,-500.0,0.00016473,2]
[366134867,1750080649434,-500.0,0.00016473,2]
[366134868,1750080649443,-500.0,0.00016473,2]
[366134869,1750080649452,-205.42608653,0.00016473,2]
[366134870,1750080649462,-500.0,0.00016473,2]
[366134871,1750080649472,-152.0,0.00016486,3]
[366134872,1750080649482,-34786.26693424,0.000165,2]
[366134873,1750080649492,-229.40118949,0.00016502,2]
[366134874,1750080649502,-198.6167997,0.00016502,2]
[366134875,1750080649512,-4953.03817407,0.00016527,2]
[366134876,1750080649521,-833.8156298,0.00016556,2]
[366134877,1750080649531,-168.0,0.00016565,2]
[366134878,1750080649540,-2000.0,0.00016566,2]
[366134879,1750080649550,-500.0,0.00016566,2]
[366134880,1750080649560,-229.40118947,0.00016568,2]
[366134881,1750080649569,-168.0,0.00016573,2]
[366134882,1750080649579,-1114.660621,0.00016592,2]
[366134883,1750080649588,-4953.03817407,0.00016599,2]
[366134884,1750080649598,-300.0,0.000166,2]
[366134885,1750080649607,-300.0,0.000166,2]
[366134886,1750080649616,-300.0,0.00016601,2]
[366134887,1750080649626,-666.0,0.00016601,2]
[366134888,1750080649635,-197.73,0.00016601,2]
[366134889,1750080649646,-2109.1,0.00016601,2]
[366134890,1750080649656,-2109.1,0.00016601,2]
[366134891,1750080649665,-2109.1,0.00016601,2]
[366134892,1750080649675,-2109.1,0.00016601,2]
[366134893,1750080649685,-2109.1,0.00016601,2]
[366134894,1750080649694,-2109.1,0.00016601,2]
[366134895,1750080649704,-2109.1,0.00016601,2]
[366134896,1750080649714,-2109.1,0.00016601,2]
[366134897,1750080649724,-2109.1,0.00016601,2]
[366134898,1750080649734,-2109.1,0.00016601,2]
[366134899,1750080649744,-300.0,0.00016601,2]
[366134900,1750080649755,-300.0,0.00016601,2]
[366134901,1750080649764,-666.0,0.00016601,2]
[366134902,1750080649774,-300.0,0.00016601,2]
[366134903,1750080649785,-198.61679968,0.00016602,2]
[366134904,1750080649795,-151.0,0.00016602,2]
[366134905,1750080649804,-151.0,0.00016602,2]
[366134906,1750080649814,-151.0,0.00016602,2]
[366134907,1750080649824,-151.0,0.00016602,2]
[366134908,1750080649834,-666.819302,0.00016602,2]
[366134909,1750080649844,-666.819302,0.00016602,2]
[366134910,1750080650231,-151.0,0.00016602,2]
[366134911,1750080650246,-510.917481,0.00016602,2]
[366134912,1750080650256,-510.917481,0.00016602,2]
[366134913,1750080650265,-151.0,0.00016602,2]
[366134914,1750080650275,-151.0,0.00016602,2]
[366134915,1750080650285,-192.13282865,0.00016602,2]
[366134916,1750080650295,-231.562512,0.00016602,2]
[366134917,1750080650304,-207.69185,0.00016602,2]
[366134918,1750080650314,-231.562512,0.00016602,2]
[366134919,1750080650324,-151.0,0.00016602,2]
[366134920,1750080650334,-151.0,0.00016602,2]
[366134921,1750080650343,-151.0,0.00016602,2]
[366134922,1750080650352,-151.0,0.00016602,2]
[366134923,1750080650362,-151.0,0.00016602,2]
[366134924,1750080650372,-151.0,0.00016602,2]
[366134925,1750080650381,-151.0,0.00016602,2]
[366134926,1750080650390,-443.397042,0.00016602,2]
[366134927,1750080650401,-443.397042,0.00016602,2]
[366134928,1750080650411,-334.899797,0.00016602,2]
[366134929,1750080650420,-334.899797,0.00016602,2]
[366134930,1750080650429,-151.0,0.00016602,2]
[366134931,1750080650448,-151.0,0.00016602,2]
[366134932,1750080650463,-300.580708,0.00016602,2]
[366134933,1750080650473,-230.081965,0.00016602,2]
[366134934,1750080650483,-230.081965,0.00016602,2]
[366134935,1750080650494,-490.0,0.00016602,2]
[366134936,1750080650504,-151.0,0.00016602,2]
[366134937,1750080650514,-490.0,0.00016602,2]
[366134938,1750080650524,-250.0,0.00016602,2]
[366134939,1750080650534,-151.0,0.00016602,2]
[366134940,1750080650544,-490.0,0.00016602,2]
[366134941,1750080650555,-490.0,0.00016602,2]
[366134942,1750080650565,-475.55765483,0.00016602,2]
[366134943,1750080650576,-490.0,0.00016602,2]
[366134944,1750080650586,-490.0,0.00016602,2]
[366134945,1750080650596,-490.0,0.00016602,2]
[366134946,1750080650607,-490.0,0.00016602,2]
[366134947,1750080650617,-490.0,0.00016602,2]
[366134948,1750080650628,-490.0,0.00016602,2]
[366134949,1750080650638,-490.0,0.00016602,2]
[366134950,1750080650649,-490.0,0.00016602,2]
[366134951,1750080650659,-547.33,0.00016602,2]
[366134952,1750080650670,-490.0,0.00016602,2]
[366134953,1750080650680,-400.78120572,0.00016602,2]
[366134954,1750080650690,-490.0,0.00016602,2]
[366134955,1750080650700,-490.0,0.00016602,2]
[366134956,1750080650711,-490.0,0.00016602,2]
[366134957,1750080650721,-490.0,0.00016602,2]
[366134958,1750080650731,-490.0,0.00016602,2]
[366134959,1750080650741,-490.0,0.00016602,2]
[366134960,1750080650751,-501.78,0.00016602,2]
[366134961,1750080650761,-490.0,0.00016602,2]
[366134962,1750080650771,-490.0,0.00016602,2]
[366134963,1750080650781,-490.0,0.00016602,2]
[366134964,1750080650792,-490.0,0.00016602,2]
[366134965,1750080650803,-490.0,0.00016602,2]
[366134966,1750080650813,-490.0,0.00016602,2]
[366134967,1750080650823,-490.0,0.00016602,2]
[366134968,1750080650833,-490.0,0.00016602,2]
[366134969,1750080650843,-490.0,0.00016602,2]
[366134970,1750080650853,-480.35991438,0.00016602,2]
[366134971,1750080650863,-490.0,0.00016602,2]
[366134972,1750080650880,-490.0,0.00016602,2]
[366134973,1750080650891,-758.18,0.00016602,2]
[366134974,1750080650903,-490.0,0.00016602,2]
[366134975,1750080650913,-490.0,0.00016602,2]
[366134976,1750080650924,-490.0,0.00016602,2]
[366134977,1750080650935,-859.16,0.00016602,2]
[366134978,1750080650945,-490.0,0.00016602,2]
[366134979,1750080650956,-490.0,0.00016602,2]
[366134980,1750080650967,-490.0,0.00016602,2]
[366134981,1750080650978,-519.31,0.00016602,2]
[366134982,1750080650989,-490.0,0.00016602,2]
[366134983,1750080650999,-490.0,0.00016602,2]
[366134984,1750080651010,-490.0,0.00016602,2]
[366134985,1750080651020,-490.0,0.00016602,2]
[366134986,1750080651034,-660.7,0.00016602,2]
[366134987,1750080651046,-490.0,0.00016602,2]
[366134988,1750080651056,-490.0,0.00016602,2]
[366134989,1750080651066,-490.0,0.00016602,2]
[366134990,1750080651078,-490.0,0.00016602,2]
[366134991,1750080651089,-490.0,0.00016602,2]
[366134992,1750080651099,-490.0,0.00016602,2]
[366134993,1750080651110,-490.0,0.00016602,2]
[366134994,1750080651121,-490.0,0.00016602,2]
[366134995,1750080651131,-490.0,0.00016602,2]
[366134996,1750080651141,-490.0,0.00016602,2]
[366134997,1750080651152,-152.44944783,0.00016602,2]
[366134998,1750080651163,-490.0,0.00016602,2]
[366134999,1750080651173,-490.0,0.00016602,2]
[366135000,1750080651184,-490.0,0.00016602,2]
[366135001,1750080651194,-490.0,0.00016602,2]
[366135002,1750080651204,-490.0,0.00016602,2]
[366135003,1750080651214,-490.0,0.00016602,2]
[366135004,1750080651224,-490.0,0.00016602,2]
[366135005,1750080651235,-490.0,0.00016602,2]
[366135006,1750080651244,-509.58286633,0.00016602,2]
[366135007,1750080651254,-490.0,0.00016602,2]
[366135008,1750080651264,-490.0,0.00016602,2]
[366135009,1750080651274,-490.0,0.00016602,2]
[366135010,1750080651284,-490.0,0.00016602,2]
[366135011,1750080651295,-490.0,0.00016602,2]
[366135012,1750080651305,-600.32,0.00016602,2]
[366135013,1750080651321,-583.93,0.00016602,2]
[366135014,1750080651331,-490.0,0.00016602,2]
[366135015,1750080651342,-490.0,0.00016602,2]
[366135016,1750080651353,-817.26,0.00016602,2]
[366135017,1750080651364,-1400.78,0.00016602,2]
[366135018,1750080651375,-490.0,0.00016602,2]
[366135019,1750080651386,-1229.33,0.00016602,2]
[366135020,1750080651400,-490.0,0.00016602,2]
[366135021,1750080651411,-490.0,0.00016602,2]
[366135022,1750080651423,-511.81,0.00016602,2]
[366135023,1750080651435,-490.0,0.00016602,2]
[366135024,1750080651446,-546.35792707,0.00016602,2]
[366135025,1750080651457,-490.0,0.00016602,2]
[366135026,1750080651467,-805.51,0.00016602,2]
[366135027,1750080651479,-610.11,0.00016602,2]
[366135028,1750080651490,-773.84,0.00016602,2]
[366135029,1750080651501,-490.0,0.00016602,2]
[366135030,1750080651512,-490.0,0.00016602,2]
[366135031,1750080651524,-490.0,0.00016602,2]
[366135032,1750080651536,-151.0,0.00016602,2]
[366135033,1750080651546,-490.0,0.00016602,2]
[366135034,1750080651557,-490.0,0.00016602,2]
[366135035,1750080651568,-1076.79,0.00016602,2]
[366135036,1750080651579,-490.0,0.00016602,2]
[366135037,1750080651590,-490.0,0.00016602,2]
[366135038,1750080651601,-904.08,0.00016602,2]
[366135039,1750080651611,-490.0,0.00016602,2]
[366135040,1750080651622,-490.0,0.00016602,2]
[366135041,1750080651632,-921.02,0.00016602,2]
[366135042,1750080651643,-494.56,0.00016602,2]
[366135043,1750080651655,-797.11,0.00016602,2]
[366135044,1750080651665,-1086.26,0.00016602,2]
[366135045,1750080651675,-490.0,0.00016602,2]
[366135046,1750080651686,-522.11,0.00016602,2]
[366135047,1750080651696,-490.0,0.00016602,2]
[366135048,1750080651706,-490.0,0.00016602,2]
[366135049,1750080651717,-490.0,0.00016602,2]
[366135050,1750080651727,-490.0,0.00016602,2]
[366135051,1750080651737,-490.0,0.00016602,2]
[366135052,1750080651747,-490.0,0.00016602,2]
[366135053,1750080651764,-923.43,0.00016602,2]
[366135054,1750080651775,-556.22,0.00016602,2]
[366135055,1750080651787,-1104.82,0.00016602,2]
[366135056,1750080651798,-151.0,0.00016602,2]
[366135057,1750080651809,-425.97651011,0.00016602,2]
[366135058,1750080651819,-887.42,0.00016602,2]
[366135059,1750080651830,-490.0,0.00016602,2]
[366135060,1750080651840,-987.99,0.00016602,2]
[366135061,1750080651851,-580.9,0.00016602,2]
[366135062,1750080651861,-750.54,0.00016602,2]
[366135063,1750080651872,-490.0,0.00016602,2]
[366135064,1750080651882,-845.55,0.00016602,2]
[366135065,1750080651892,-490.0,0.00016602,2]
[366135066,1750080651903,-151.0,0.00016602,2]
[366135067,1750080651913,-490.0,0.00016602,2]
[366135068,1750080651924,-644.42,0.00016602,2]
[366135069,1750080651934,-490.0,0.00016602,2]
[366135070,1750080651944,-772.81,0.00016602,2]
[366135071,1750080651954,-490.0,0.00016602,2]
[366135072,1750080651964,-490.0,0.00016602,2]
[366135073,1750080651974,-490.0,0.00016602,2]
[366135074,1750080651984,-151.0,0.00016602,2]
[366135075,1750080651994,-596.94,0.00016602,2]
[366135076,1750080652003,-151.0,0.00016602,2]
[366135077,1750080652013,-490.0,0.00016602,2]
[366135078,1750080652023,-490.0,0.00016602,2]
[366135079,1750080652034,-490.0,0.00016602,2]
[366135080,1750080652047,-495.81,0.00016602,2]
[366135081,1750080652057,-803.0,0.00016602,2]
[366135082,1750080652068,-538.02,0.00016602,2]
[366135083,1750080652079,-490.0,0.00016602,2]
[366135084,1750080652089,-490.0,0.00016602,2]
[366135085,1750080652099,-490.0,0.00016602,2]
[366135086,1750080652109,-490.0,0.00016602,2]
[366135087,1750080652121,-490.0,0.00016602,2]
[366135088,1750080652132,-739.43,0.00016602,2]
[366135089,1750080652142,-511.38,0.00016602,2]
[366135090,1750080652153,-490.0,0.00016602,2]
[366135091,1750080652163,-1546.44,0.00016602,2]
[366135092,1750080652173,-490.0,0.00016602,2]
[366135093,1750080652183,-490.0,0.00016602,2]
[366135094,1750080652193,-920.72,0.00016602,2]
[366135095,1750080652203,-490.0,0.00016602,2]
[366135096,1750080652213,-490.0,0.00016602,2]
[366135097,1750080652223,-490.0,0.00016602,2]
[366135098,1750080652232,-490.0,0.00016602,2]
[366135099,1750080652242,-151.0,0.00016602,2]
[366135100,1750080652252,-1564.69,0.00016602,2]
[366135101,1750080652262,-541.85,0.00016602,2]
[366135102,1750080652272,-490.0,0.00016602,2]
[366135103,1750080652282,-490.0,0.00016602,2]
[366135104,1750080652292,-490.0,0.00016602,2]
[366135105,1750080652302,-939.52,0.00016602,2]
[366135106,1750080652312,-490.0,0.00016602,2]
[366135107,1750080652323,-490.0,0.00016602,2]
[366135108,1750080652332,-151.0,0.00016602,2]
[366135109,1750080652342,-871.9,0.00016602,2]
[366135110,1750080652364,-490.0,0.00016602,2]
[366135111,1750080652376,-490.0,0.00016602,2]
[366135112,1750080652387,-1395.78,0.00016602,2]
[366135113,1750080652399,-490.0,0.00016602,2]
[366135114,1750080652410,-490.0,0.00016602,2]
[366135115,1750080652420,-490.0,0.00016602,2]
[366135116,1750080652431,-490.0,0.00016602,2]
[366135117,1750080652441,-729.73,0.00016602,2]
[366135118,1750080652452,-550.02,0.00016602,2]
[366135119,1750080652462,-1416.56,0.00016602,2]
[366135120,1750080652472,-490.0,0.00016602,2]
[366135121,1750080652483,-490.0,0.00016602,2]
[366135122,1750080652494,-771.81,0.00016602,2]
[366135123,1750080652504,-553.98,0.00016602,2]
[366135124,1750080652514,-322.11733847,0.00016602,2]
[366135125,1750080652524,-490.0,0.00016602,2]
[366135126,1750080652534,-490.0,0.00016602,2]
[366135127,1750080652545,-490.0,0.00016602,2]
[366135128,1750080652555,-1186.21,0.00016602,2]
[366135129,1750080652565,-784.8,0.00016602,2]
[366135130,1750080652575,-478.47452084,0.00016602,2]
[366135131,1750080653505,-11.52547916,0.00016602,2]
[366135132,1750080653516,-815.76,0.00016602,2]
[366135133,1750080653526,-490.0,0.00016602,2]
[366135134,1750080653536,-490.0,0.00016602,2]
[366135135,1750080653546,-490.0,0.00016602,2]
[366135136,1750080653557,-490.0,0.00016602,2]
[366135137,1750080653567,-490.0,0.00016602,2]
[366135138,1750080653577,-834.3,0.00016602,2]
[366135139,1750080653586,-490.0,0.00016602,2]
[366135140,1750080653596,-760.61752084,0.00016602,2]
[366135141,1750080653664,-622.9062313,0.00016438,2]
[366135142,1750080653674,-622.9062313,0.00016438,2]
[366135143,1750080653684,-622.9062313,0.00016438,2]
[366135144,1750080653693,-878.13247916,0.00016602,2]
[366135145,1750080653703,-490.0,0.00016602,2]
[366135146,1750080653714,-715.64,0.00016602,2]
[366135147,1750080653723,-490.0,0.00016602,2]
[366135148,1750080653732,-1245.01,0.00016602,2]
[366135149,1750080653742,-154.06238246,0.00016602,2]
[366135150,1750080653759,-335.93761754,0.00016602,2]
[366135151,1750080653768,-490.0,0.00016602,2]
[366135152,1750080653778,-1176.55,0.00016602,2]
[366135153,1750080653788,-490.0,0.00016602,2]
[366135154,1750080653798,-516.16,0.00016602,2]
[366135155,1750080653808,-490.0,0.00016602,2]
[366135156,1750080653818,-490.0,0.00016602,2]
[366135157,1750080653828,-490.0,0.00016602,2]
[366135158,1750080653838,-222.01815247,0.00016602,2]
[366135159,1750080654603,-314.72190265,0.0001599,2]
[366135160,1750080654632,-155.57099511,0.0001599,2]
[366135161,1750080654642,-151.0,0.00016438,2]
[366135162,1750080654656,-4090.0,0.00016589,2]
[366135163,1750080654666,-689.43184753,0.00016602,2]
[366135164,1750080654675,-624.15,0.00016602,2]
[366135165,1750080654685,-490.0,0.00016602,2]
[366135166,1750080654695,-490.0,0.00016602,2]
[366135167,1750080654704,-490.0,0.00016602,2]
[366135168,1750080654714,-110.33022886,0.00016602,2]
[366135169,1750080654810,-1884.24977114,0.00016602,2]
[366135170,1750080654820,-923.59,0.00016602,2]
[366135171,1750080654830,-151.0,0.00016602,2]
[366135172,1750080654840,-490.0,0.00016602,2]
[366135173,1750080654850,-490.0,0.00016602,2]
[366135174,1750080654859,-490.0,0.00016602,2]
[366135175,1750080654868,-1300.5840162,0.00016602,2]
[366135176,1750080655676,-153.081709,0.00016028,2]
[366135177,1750080655686,-145.2859838,0.00016602,2]
[366135178,1750080655696,-490.0,0.00016602,2]
[366135179,1750080655705,-97.6573072,0.00016602,2]
[366135180,1750080655717,-392.3426928,0.00016602,2]
[366135181,1750080655726,-490.0,0.00016602,2]
[366135182,1750080655736,-490.0,0.00016602,2]
[366135183,1750080655744,-485.2353952,0.00016602,2]
[366135184,1750080717791,777.0,0.0002465,120]